Cogmind - Beta 16 @@@ ROGUE MODE // 2025.12.18 @ 03:50:28 Player: War__Prophet Result: Destroyed by L-31 Rogue with Katana Performance ------------- Evolutions (2) 1000 Regions Visited (3) 600 Robots Destroyed (29) 145 Value Destroyed (735) 735 Prototype IDs (0) 0 Alien Tech Used (0) 0 Bonus (0) 0 TOTAL SCORE: 2480 Bonus ------- None Cogmind --------- Core Integrity 0/550 Matter 115/300 Energy 18/100 System Corruption 0% Temperature Warm (183) Movement Core (100) Ox1 Location -8/Materials Parts ------- > --- POWER (3) -------- (None) > --- PROPULSION (2) --- (None) > --- UTILITY (4) ------ (None) > --- WEAPON (2) ------- Particle Cannon > --- INVENTORY (5) ---- Heat Sink High-capacity Storage Unit Improved Light Armor Plating Improved Light Armor Plating Peak State ------------ > --- POWER ------------ Reinforced Ion Engine Deuterium Engine Deuterium Engine > --- PROPULSION ------- Wheel Compact Wheel > --- UTILITY ---------- Huge Storage Unit Visual Processing Unit Utility Shielding Hardlight Generator > --- WEAPON ----------- EM Pulse Cannon > --- INVENTORY -------- Deuterium Engine Light Deuterium Engine Wheel Flight Unit Heat Sink Heat Sink Small Storage Unit High-capacity Storage Unit High-capacity Storage Unit High-capacity Matter Pod Weight Redist. System Weight Redist. System Weight Redist. System Weight Redist. System Improved Light Armor Plating Improved Light Armor Plating Improved Light Armor Plating Improved Light Armor Plating Hardlight Generator Hardlight Generator Hardlight Generator Hardlight Generator Hardlight Generator Hardlight Generator [Rating: 25] Favorites ----------- Power Light Nuclear Core Engine Deuterium Engine Power Core Light Nuclear Core Propulsion Wheel Wheel Wheel Utility Utility Shielding Device Weight Redist. System Storage High-capacity Storage Unit Processor Visual Processing Unit Protection Utility Shielding Weapon High-powered Shotgun Energy Gun Small Laser Energy Cannon EM Pulse Cannon Ballistic Gun High-powered Shotgun Build | -11 -10 -9 -8 ------- Run | Yrd Mat Mat Mat Slots Evolved 4 | . . 2 2 Power 2 | . . . 2 Propulsion . | . . . . Utility 2 | . . 2 . Weapon . | . . . . Parts Attached 41 | 5 5 14 17 Power 8 | . 1 2 5 Engine 6 | . . 2 4 Core 2 | . 1 . 1 Reactor . | . . . . Propulsion 10 | 2 2 4 2 Treads . | . . . . Leg . | . . . . Wheel 10 | 2 2 4 2 Hover . | . . . . Flight . | . . . . Utility 13 | 1 2 4 6 Device 8 | . . 3 5 Storage 3 | 1 1 . 1 Processor 1 | . . 1 . Hackware . | . . . . Protection 1 | . 1 . . Artifact . | . . . . Weapon 10 | 2 . 4 4 Energy Gun 2 | . . . 2 Energy Cannon 2 | . . . 2 Ballistic Gun 6 | 2 . 4 . Ballistic Cannon . | . . . . Launcher . | . . . . Special Weapon . | . . . . Impact Weapon . | . . . . Slashing Weapon . | . . . . Piercing Weapon . | . . . . Special Melee Weapon . | . . . . Unidentified Prototypes . | . . . . Parts Lost 28 | . . 10 18 Power 7 | . . 2 5 Propulsion 9 | . . 5 4 Utility 5 | . . 1 4 Weapon 7 | . . 2 5 Highest Loss Streak 7 | . . 4 7 To Critical Strikes . | . . . . Average Backups 14 | 1 9 18 15 Power 3 | . 3 4 1 Propulsion 3 | . 2 5 1 Utility 6 | . 2 6 12 Weapon . | . 1 1 . Tool/Special . | . . . . Unused Backups 27 | . . 7 20 Power 7 | . . 5 2 Propulsion 2 | . . 1 1 Utility 17 | . . . 17 Weapon 1 | . . 1 . Tool/Special . | . . . . Average Slot Usage (%) 77 | . 93 83 54 Engine 4 | . . 4 6 Core 4 | . 11 . 2 Wheel 17 | . 28 16 9 Device 6 | . . 10 8 Storage 10 | . 14 11 5 Processor 4 | . . 7 5 Protection 9 | . 10 11 5 Energy Cannon 1 | . . . 3 Ballistic Gun 17 | . 28 21 4 Peak Build Rating 25 | 5 10 20 25 Average Rating 13 | 3 8 16 14 On Entrance 8 | . 5 10 17 Avg Prop Armor Cover (%) . | . . . . Naked Turns 38 | . . . 38 Heaviest Build 120 | 9 50 57 120 Greatest Support 32 | 26 26 32 32 Greatest Overweight (x) 7 | . 2 5 7 Average Overweight (x) 1 | . 1 1 1 Largest Inventory Capacity 25 | 8 20 20 25 Average Capacity 16 | 6 14 20 16 Most Carried 25 | 3 15 20 25 Average Carried 14 | 1 10 18 15 Final Capacity 20 | 8 20 20 5 Final Carried 19 | 3 15 19 4 Class Distribution -------------------- 100% | Mutant Dominant Class ---------------- Mutant | -10/Materials Mutant | -9/Materials Mutant | -8/Materials Resources | -11 -10 -9 -8 ----------- Run | Yrd Mat Mat Mat Matter Collected 1002 | 201 479 256 66 Remotely . | . . . . Salvage Created 1048 | . 382 397 269 Parts 55 | . 21 19 15 Haulers Intercepted 2 | . 1 1 . Recyclers Shooed 4 | . . 2 2 Parts Field Recycled . | . . . . Retrieved Matter . | . . . . Parts Self-Destructed . | . . . . Prevented . | . . . . Parts Restored . | . . . . Kills | -11 -10 -9 -8 ------- Run | Yrd Mat Mat Mat Combat Hostiles Destroyed 17 | . 5 7 5 Guns 11 | . 5 6 . Cannons 4 | . . . 4 AOE 2 | . . 1 1 Classes Destroyed 10 | . 6 4 . Worker 3 | . 2 1 . Builder 1 | . . 1 . Hauler 2 | . 1 1 . Recycler 3 | . 2 1 . Mechanic 1 | . . 1 . Watcher 2 | . 1 . 1 Swarmer 3 | . 3 . . Grunt 9 | . 2 3 4 Brawler 2 | . . 1 1 Sentry 3 | . . 3 . Best Kill Streak 5 | . 5 4 3 Combat Bots Only 3 | . 3 3 3 Max Kills in Single Turn 2 | . 2 2 1 Gunslinging 1 | . 1 . . Exploded 1 | . . 1 1 Melee . | . . . . Uniques/NPCs Destroyed . | . . . . Combat | -11 -10 -9 -8 -------- Run | Yrd Mat Mat Mat Hostile Shots Fired 315 | . 26 102 187 Missed 85 | . 5 23 57 Hits 230 | . 21 79 130 Melee 8 | . . 2 6 Projectile 222 | . 21 77 124 Critical Strikes 5 | . . 2 3 Damage Taken 2983 | . 181 1135 1667 Core 844 | . 31 263 550 Absorbed by Shields 216 | . . . 216 Redirected to Shielding 39 | . 4 22 13 Core Remaining (%) 73 | 100 87 34 . Volleys Fired 101 | . 30 38 33 Largest 2 | . 2 2 2 Hottest 108 | . 40 50 108 Shots Fired 171 | . 60 74 37 Gun 144 | . 60 74 10 Cannon 27 | . . . 27 Launcher . | . . . . Special . | . . . . Kinetic 134 | . 60 74 . Thermal 22 | . . . 22 Explosive . | . . . . Electromagnetic 15 | . . . 15 Robot Hit Streak 9 | . 8 9 9 Robot Miss Streak 6 | . 6 5 2 Penetration Max . | . . . . Secondary Targets 1 | . 1 . . Max Gunslinging Chain 1 | . 1 . . Shots Hit Robots 119 | . 32 61 26 Core Hits 51 | . 17 22 12 Critical Kills . | . . . . Critical Parts Destroyed . | . . . . Critical Strikes . | . . . . Melee Attacks . | . . . . Impact . | . . . . Slashing . | . . . . Piercing . | . . . . Sneak Attacks . | . . . . Combat Hostiles . | . . . . Follow-up Attacks . | . . . . Damage Inflicted 2430 | . 423 1270 737 Guns 1674 | . 423 1199 52 Cannons 558 | . . . 558 Explosions 180 | . . 70 110 Melee . | . . . . Ramming 18 | . . 1 17 Kinetic 1622 | . 423 1199 . Thermal 365 | . . . 365 Explosive . | . . . . Electromagnetic 425 | . . 70 355 Impact . | . . . . Slashing . | . . . . Piercing . | . . . . Highest Corruption 1 | . . 1 . Average Corruption 1 | . . 1 . Corruption Purged . | . . . . Corruption Blocked . | . . . . Overload Shots . | . . . . Overflow Damage 14 | . . . 14 Projectiles 14 | . . . 14 Explosions . | . . . . Melee . | . . . . Knockbacks 1 | . . . 1 Impact 1 | . . . 1 Kinetic . | . . . . Secondary . | . . . . Self-Inflicted Damage 55 | . . 49 6 Shots 2 | . . 2 . Rammed 9 | . . 2 7 Targets Rammed 9 | . . 2 7 Kicked . | . . . . Crushed . | . . . . Highest Temperature 419 | . 8 5 419 Average Temperature 123 | . 4 3 136 Received Heat Transfer 1233 | . 33 501 699 Effects 6 | . . . 6 Shutdowns 3 | . . . 3 Interference 2 | . . . 2 Matter Decay 1 | . . . 1 Siege Activations . | . . . . Martial Activations . | . . . . Shielding Activations . | . . . . Robots Disrupted . | . . . . Combat Hostiles . | . . . . Robots Corrupted . | . . . . Combat Hostiles . | . . . . Parts Fried . | . . . . Impact Corruptions . | . . . . Robots Melted . | . . . . Combat Hostiles . | . . . . Parts Melted 1 | . . . 1 Heat Transferred 645 | . . . 645 Parts Sabotaged . | . . . . Parts Stolen . | . . . . Parts Stripped . | . . . . Power Chain Reactions 1 | . . . 1 Alert | -11 -10 -9 -8 ------- Run | Yrd Mat Mat Mat Maximum Alert Level . | . . . . Low Security (%) 100 | 100 100 100 100 Level 1 . | . . . . Level 2 . | . . . . Level 3 . | . . . . Level 4 . | . . . . Level 5 . | . . . . High Security . | . . . . Max Security . | . . . . Peak Influence 175 | . 82 175 76 Initial 56 | . . 7 56 Average 36 | . 28 50 32 Influence Increases 795 | . 169 353 273 Destroy 0b10 Robot/C 340 | . 100 140 100 Destroy 0b10 Robot/NC 60 | . 30 25 5 Destroy Leader 88 | . 24 52 12 Disable Machine 45 | . . 45 . Destroy Structure 7 | . . 1 6 Partial Spotted 15 | . . 15 . Lose Combat Pursuer 240 | . 15 75 150 Influence Decreases 765 | . 152 235 378 Entered New Map 89 | . . 10 79 Time Decay 445 | . 152 140 153 Lost Part 231 | . . 85 146 Squads Dispatched 2 | . . 1 1 Investigation 1 | . . . 1 Extermination . | . . . . Reinforcement 1 | . . 1 . Assault . | . . . . Garrison . | . . . . Intercept . | . . . . Searches Triggered . | . . . . Construction Impeded . | . . . . Haulers Reinforced . | . . . . Active Scanning Responses . | . . . . Cargo Convoy Interrupts . | . . . . Stealth | -11 -10 -9 -8 --------- Run | Yrd Mat Mat Mat Distress Signals 4 | . 1 2 1 Communications Jammed . | . . . . Distress Signals . | . . . . Times Spotted 59 | . 9 24 26 Peak Tracking Total 12 | . 4 6 12 Tactical Retreats 10 | . 1 4 5 Traps | -11 -10 -9 -8 ------- Run | Yrd Mat Mat Mat Traps Triggered 1 | . . . 1 Indirectly . | . . . . Trap Hack Attempts . | . . . . Triggered . | . . . . Disarmed . | . . . . Reprogrammed . | . . . . Reused . | . . . . Traps Extracted . | . . . . Installed . | . . . . Triggered . | . . . . Machines | -11 -10 -9 -8 ---------- Run | Yrd Mat Mat Mat Machines Disabled 4 | . 1 3 . Max in Single Turn 3 | . 1 3 . Machines Repaired . | . . . . Machines Dismantled . | . . . . Machines Sabotaged . | . . . . Overloaded Fab Kills . | . . . . Hacking | -11 -10 -9 -8 --------- Run | Yrd Mat Mat Mat Machines Accessed . | . . . . Terminals . | . . . . Fabricators . | . . . . Repair Stations . | . . . . Recycling Units . | . . . . Scanalyzers . | . . . . Garrison Access . | . . . . Total Hacks . | . . . . Successful . | . . . . Failed . | . . . . Catastrophic . | . . . . Database Lockouts . | . . . . Manual . | . . . . Terminals . | . . . . Fabricators . | . . . . Repair Stations . | . . . . Recycling Units . | . . . . Scanalyzers . | . . . . Garrison Access . | . . . . Terminal Hacks . | . . . . Fabricator Hacks . | . . . . Repair Station Hacks . | . . . . Recycling Unit Hacks . | . . . . Scanalyzer . | . . . . Garrison Access Hacks . | . . . . Unauthorized Hacks . | . . . . Terminals . | . . . . Fabricators . | . . . . Repair Stations . | . . . . Recycling Units . | . . . . Scanalyzers . | . . . . Garrison Access . | . . . . Data Cores Recovered . | . . . . Used . | . . . . Hacking Detections . | . . . . Full Trace Events . | . . . . Feedback Events . | . . . . Feedback Blocked . | . . . . Robot Schematics Acquired . | . . . . Robots Built . | . . . . Authchips . | . . . . Time . | . . . . Total Robot Build Rating . | . . . . Part Schematics Acquired . | . . . . Parts Built . | . . . . Authchips . | . . . . Time . | . . . . Total Part Build Rating . | . . . . Part Studies Acquired . | . . . . Parts Repaired . | . . . . Time . | . . . . Parts Recycled . | . . . . Recycled Matter . | . . . . Retrieved Matter . | . . . . Retrieved Components . | . . . . Parts Scanalyzed . | . . . . Part Schematics Acquired . | . . . . Parts Damaged . | . . . . Bothacking | -11 -10 -9 -8 ------------ Run | Yrd Mat Mat Mat Used RIF Installer . | . . . . Robots Hacked . | . . . . Non-combat . | . . . . Combat . | . . . . Robot Hacks Applied . | . . . . Relay Couplers Released . | . . . . Fabnet Peak Effective % . | . . . . Robots Rewired . | . . . . Allies Hacked . | . . . . Hacks Repelled . | . . . . Allies | -11 -10 -9 -8 -------- Run | Yrd Mat Mat Mat Total Allies . | . . . . Largest Group . | . . . . Highest-Rated Group . | . . . . Highest-Rated Ally . | . . . . Total Orders . | . . . . Ally Attacks . | . . . . Total Damage . | . . . . Kills . | . . . . Allies Corrupted . | . . . . Allies Melted . | . . . . Intel | -11 -10 -9 -8 ------- Run | Yrd Mat Mat Mat Active Infowar (turns) 672 | . . 444 228 Optics 575 | . . 347 228 Structural 97 | . . 97 . Robot Analysis Total . | . . . . Derelict Logs Recovered . | . . . . Drone Launches . | . . . . Drone Recoveries . | . . . . Exploration | -11 -10 -9 -8 ------------- Run | Yrd Mat Mat Mat Turns Passed 1310 | 63 351 510 386 Spaces Moved 822 | 60 240 291 231 Core 106 | 3 . 3 100 Treads . | . . . . Legs . | . . . . Wheels 716 | 57 240 288 131 Hover . | . . . . Flight . | . . . . Fastest Speed 50 | 50 90 95 50 Average Speed 106 | 88 101 112 109 Slowest Speed 300 | 100 110 300 300 Overloaded Moves . | . . . . Propulsion Burnouts . | . . . . Robots Hopped . | . . . . Potential Cave-ins . | . . . . Cave-ins Triggered . | . . . . Exploration Rate (%) 25 | 4 43 30 26 Regions Visited 3 Branch Regions . Pre-discovered Areas . | . . . . Known Exits Taken . | . . . . Unknown Exits Taken 3 | 1 1 1 . Scrap Searched . | . . . . Spaces Dug . | . . . . Terrain Destroyed 6 | . . . 6 Melee . | . . . . Projectile . | . . . . AOE 6 | . . . 6 Terrain Rammed . | . . . . Walls Destroyed . | . . . . Machines Disabled . | . . . . Actions | -11 -10 -9 -8 --------- Run | Yrd Mat Mat Mat Total 1064 | 67 284 400 313 Wait 35 | . 1 26 8 Move 819 | 59 239 290 231 Hop . | . . . . Pick Up 34 | 3 9 15 7 Fast Attach 26 | 5 2 7 12 Attach 12 | . . 7 5 Detach 3 | . . 2 1 Swap 9 | . 3 3 3 Drop 16 | . . 10 6 Fire 101 | . 30 38 33 Melee . | . . . . Ram 9 | . . 2 7 Kick . | . . . . Crush . | . . . . Escape Stasis . | . . . . Rewire . | . . . . Trap . | . . . . Miscellaneous . | . . . . Route ------- -11/Scrapyard -10/Materials (discovered 3 exits: [*Mat] / [*Min x2]) -9/Materials -8/Materials History --------- Turn | Location | Event 11 | -11/Scrapyard | Discovered new exit (range 16) 64 | -11/Scrapyard | Entered Materials 74 | -10/Materials | Discovered new exit (range 16) 193 | -10/Materials | Discovered new exit (range 7) 316 | -10/Materials | Build established: Mutant 403 | -10/Materials | Discovered new exit (range 9) 415 | -10/Materials | Entered another Materials area 415 | -9/Materials | Evolved 2 slots: Utility x2 698 | -9/Materials | Lost 4 parts (1p2n1u) 855 | -9/Materials | Core integrity fell below 50% 916 | -9/Materials | Discovered new exit (range 10) 925 | -9/Materials | Entered another Materials area 925 | -8/Materials | Evolved 2 slots: Power x2 1045 | -8/Materials | Lost 3 parts (1n2w) 1176 | -8/Materials | Core integrity fell below 50% 1206 | -8/Materials | Lost 7 parts (3p2n1u1w) 1282 | -8/Materials | Core integrity fell below 20% 1311 | -8/Materials | Destroyed by L-31 Rogue with Katana Last Messages --------------- 01279_ Acquired Particle Cannon. 01281_ G-47 Trooper destroyed. 01281_ Slug penetrates Wall. 01281_ Sml. Laser destroyed. 01285_ Hardlight Generator destroyed. 01287_ Aluminum Leg melted. 01287_ G-47 Trooper destroyed. 01290_ Slug penetrates Wall. 01290_ Lgt. Deuterium Engine destroyed. 01293_ Slug penetrates Wall. 01297_ Acquired Lgt. Nuclear Core. 01298_ G-47 Trooper misfires. 01302_ Slug penetrates Wall. 01302_ Hardlight Generator destroyed. 01305_ Slug penetrates Wall. 01306_ Destroyed Lgt. Nuclear Core. 01308_ Slug penetrates Wall. 01308_ Hardlight Generator destroyed. 01310_ Lgt. Nuclear Core destroyed. 01310_ R-06 Scavenger collects Aluminum Leg. Map ----- +----------------------------------------------------+ | ?????????????????????????????????????????????????? | | ?????????????????????????????????????????????????? | | ?????????????????????????????????????????????????? | | ?????????????????????????????????????????????????? | | ?????????????????????????????????????????????????? | | ?????????????????????????????????????????????????? | | ?????????????????????????????????????????????????? | | ?????????????????????????????????????????????????? | | ?????????????????????????????????????????????????? | | ?????????????????????????????????????????????????? | | ???????????????????? ????????????????????????????? | | ?????????????????? ???? ???????????????????????? | | ?????????????????? ??? #??????????????????????? | | ?????????????????? "?? #??????????????????????? | | ??????? ?????????? = """ #??????????????????????? | | ??????? ?????????# """ #??????????????????????? | | ??????? ?????????# """ #??????????????????????? | | ??????? ?????????# ##?????????????????????? | | ??????? ??######## +?????????????????????? | | ??????? ??# #?????????????????????? | | ??????? ??# ??????????????????????? | | ??????? ??# """ ????????????????????????? | | ??????# #?# """ ########??????????????????? | | ??????# #?# ^ """ # r g #??????????????????? | | ??????# #?# ![[ # l g #??????????????????? | | ??????# #?# [ #%@ g #??????????????????? | | ??????# #?# [ """ /g= "" #??????????????????? | | ??????# #?# """ #%[""" + ???????????????? | | ??????# #?# "%" #= """ #####??????????????? | | ??????# #?# ########??????????????????? | | ####### ### #?????????????????????????? | | "" #?????????????????????????? | | "T #?????#######?????????????? | | "" ####### #?????????????? | | #### % % #?????????????? | | #??# " #?????????????? | | #??# ####### #### % #?????????????? | | #??# #?????# #??########### #?????????????? | | #??# #?????# #???####"#"####+####?????????????? | | #??# #?????# #???# ! #??????????????? | | #??# #?????# #???# #??????????????? | | #??# #?????# #???# #??????????????? | | #??# #?????# #???# ###????????????? | | #??# #?????# #???# # ????????????? | | #??# #?????? ????# # #????????????? | | #??# #?????? ????########+###### #????????????? | | #??# #?????? ?????????# !#??# #????????????? | | #??# #?????? ?????????# !!####!#????????????? | | ##### #?????? ?????????# !!*!!=!#????????????? | | # #?????? ?????????# !!####!#????????????? | +----------------------------------------------------+ Best States ------------- Heat Dissipation 31 Energy Generation 30 Energy Capacity 615 Matter Stores 300 Matter Capacity 300 Sight Range 18 Terrain Scan Density 10 Additional Mass Support 6 Utility Shielding 33 Evasion (%) 50 Item Schematics ----------------- None Robot Schematics ------------------ None Fabricated ------------ Nothing Repaired ---------- Nothing Studied --------- None Alien Tech Used ----------------- None Achievements -------------- None Challenges ------------ None Game ------ Seed ArmorVisualShooter Manual? 0 Play Time 00:14:20 Cumulative 51.1 hours Start 2025.12.18 @ 03:39:33 End 2025.12.18 @ 03:50:28 Sessions 1 Manual Loads 0 Difficulty Rogue Special Mode None Game No. 192 Rogue 192 Adventurer 0 Explorer 0 Win Type - Total 0 Types 0/0/0/0/0/0/0/0/0/0 Lore% 12 Gallery% 37 Achievement% 25 Wizard Run 0 Options --------- Layout 1 ASCII 0 Keyboard 1 Movement Vi Keybinds 0 Fullscreen 1 Font 16/SmallcapsGlow Map View 55x38 Zoom Use 0% Tactical HUD 1 Map Filters NONE Filters NONE Steam X RUN: 374ef3ec-b106-4c02-be44-49221b7d90f6